bitfinex/quotes_ETHUSD_20251120
["timestamp","ask_amount","ask_price","bid_price","bid_amount"]
[1763641656075,0.002,3021.3,3021.2,4.7137043]
[1763641656303,0.0012,3021.3,3021.2,5.59781335]
[1763641656464,0.0012,3021.3,3021.2,6.00331735]
[1763641657466,0.89135156,3023.4,3021.6,0.405504]
[1763641657773,0.30929658,3023.3,3022.5,0.1863]
[1763641657977,0.76599658,3023.4,3022.6,6.61681994]
[1763641658475,0.30929658,3023.4,3022.7,0.4512]
[1763641658679,0.1569,3023.5,3022.7,0.4512]
[1763641659381,0.1569,3023.5,3022.7,0.5632]
[1763641659593,0.1569,3023.5,3022.7,1.63067299]
[1763641659834,0.112,3023.8,3022.7,2.53766563]
[1763641660043,0.112,3023.8,3022.9,9.92424492]
[1763641660454,0.112,3023.8,3023.0,1.35819264]
[1763641660604,1.18654309,3024.9,3023.0,1.35819264]
[1763641660605,0.1569,3024.4,3023.7,0.6394]
[1763641660933,0.1569,3024.4,3023.8,0.4579]
[1763641661142,0.6325,3024.7,3023.8,0.9091]
[1763641661442,7.24473528,3024.7,3023.6,0.112]
[1763641661614,0.4756,3024.6,3023.6,0.112]
[1763641661808,0.4756,3024.6,3023.3,0.6327]
[1763641662015,0.4756,3024.6,3023.4,0.112]
[1763641662354,0.4756,3024.6,3022.7,0.90699264]
[1763641662355,6.65399238,3024.5,3022.7,0.90699264]
[1763641662535,1.21452146,3024.4,3022.8,0.5632]
[1763641662712,0.002,3023.5,3022.8,0.4512]
[1763641662913,0.002,3023.5,3022.7,1.01899264]
[1763641663111,0.1569,3023.4,3022.7,1.01899264]
[1763641663723,0.002,3023.5,3023.3,0.4579]
[1763641664049,0.002,3023.5,3023.0,0.4512]
[1763641664250,0.002,3023.5,3022.9,0.90699264]
[1763641664461,0.34861512,3023.5,3022.9,0.90699264]
[1763641664919,0.002,3023.5,3022.9,0.90699264]
[1763641666383,0.002,3023.5,3022.3,3.30868335]
[1763641666384,0.4849,3023.0,3022.2,0.4512]
[1763641666683,0.4849,3023.0,3022.4,0.112]
[1763641667034,0.0644,3023.4,3022.4,0.5632]
[1763641667628,0.04134554,3023.3,3022.3,0.112]
[1763641667833,0.0644,3023.4,3022.3,0.112]
[1763641668030,0.002,3023.5,3022.3,0.33407971]
[1763641668031,0.51694554,3023.3,3022.3,0.33407971]
[1763641668234,0.4756,3023.3,3022.3,6.61747674]
[1763641668478,3.78329189,3023.3,3022.4,0.90699264]
[1763641668935,0.4756,3023.2,3022.4,0.90699264]
[1763641669331,0.04134828,3023.1,3022.4,0.90699264]
[1763641669562,0.0736,3022.5,3022.4,0.90699264]
[1763641669964,3.78327224,3023.3,3022.4,1.36489264]
[1763641670281,0.4756,3023.2,3022.4,1.36489264]
[1763641670484,0.002,3023.5,3022.5,16.67239567]
[1763641670780,0.002,3023.5,3022.6,0.90699264]
[1763641670978,0.002,3023.5,3022.7,0.4512]
[1763641672002,0.2292,3022.8,3022.6,0.90699264]
[1763641672356,0.2292,3022.8,3022.7,3.30830052]
[1763641673279,0.0736,3022.8,3022.7,3.30830052]
[1763641673657,0.7016,3022.8,3021.5,0.4512]
[1763641673981,0.7016,3022.8,3021.6,10.37971467]
[1763641673982,0.0047,3022.3,3021.6,10.37971467]
[1763641674155,0.112,3022.7,3021.7,1.95616411]
[1763641674355,0.112,3022.7,3021.9,6.61835268]
[1763641674694,3.89598551,3022.7,3021.9,6.61835268]
[1763641674892,3.89598551,3022.7,3021.9,3.30917634]
[1763641675194,0.4756,3022.6,3021.5,0.4512]
[1763641675365,0.4756,3022.6,3021.6,3.3094491]
[1763641675772,1.49375365,3022.6,3021.5,3.30957227]
[1763641675979,0.30812343,3022.5,3021.5,6.61918669]
[1763641676187,0.78372343,3022.5,3021.5,6.61918669]
[1763641676394,0.4756,3022.5,3021.5,6.61918669]
[1763641676595,0.4756,3022.4,3021.5,6.61918669]
[1763641678199,0.4756,3022.4,3021.5,7.07038669]
[1763641679003,0.4756,3022.4,3021.6,0.4512]
[1763641679403,3.78423701,3022.4,3021.6,0.4512]
[1763641680207,3.30841504,3022.6,3021.6,0.4512]
[1763641680405,0.112,3022.7,3021.6,0.4512]
[1763641680406,0.112,3022.7,3021.6,1.35819264]
[1763641680603,0.112,3022.7,3021.7,1.12879938]
[1763641680814,0.112,3022.7,3021.8,6.6185717]
[1763641681017,0.112,3022.7,3021.8,10.37905755]
[1763641681219,0.112,3022.7,3021.9,0.4512]
[1763641681582,3.42031332,3022.7,3021.9,0.4512]
[1763641681928,3.42030647,3022.7,3021.9,1.66125711]
[1763641682430,3.89590647,3022.7,3021.9,1.66125711]
[1763641682923,0.5876,3022.7,3022.0,6.61813368]
[1763641683083,0.112,3022.7,3022.1,0.65555498]
[1763641683407,0.112,3022.7,3022.6,0.4579]
[1763641683727,0.112,3022.7,3022.2,1.08112879]
[1763641683728,0.112,3022.7,3022.2,1.50947555]
[1763641684613,0.112,3022.7,3022.3,0.4512]
[1763641685116,0.112,3022.7,3022.4,3.3086289]
[1763641686013,0.112,3022.7,3022.2,4.36711983]
[1763641686217,0.112,3022.7,3022.2,7.06889213]
[1763641687702,0.1556,3022.9,3022.2,6.61769213]
[1763641688211,0.4756,3022.8,3022.2,6.61769213]
[1763641688589,0.112,3023.1,3022.7,0.4723]
[1763641688783,0.112,3023.1,3022.3,0.4782]
[1763641689008,0.112,3023.1,3022.4,1.040474]
[1763641689220,0.112,3023.1,3022.5,6.61703886]
[1763641689490,0.4205061,3023.1,3022.5,6.61703886]
[1763641689721,0.112,3023.1,3022.6,0.4782]
[1763641689886,0.112,3023.1,3023.0,0.4723]
[1763641690624,0.002,3023.5,3023.0,0.9505]
[1763641690820,0.002,3023.5,3023.4,0.4723]
[1763641691222,0.002,3023.5,3023.4,3.77983456]
[1763641691545,0.002,3023.5,3023.4,0.4723]
[1763641691727,0.002,3023.5,3023.4,3.77983456]
[1763641692510,0.002,3023.5,3023.0,3.30794475]
[1763641692511,0.5473,3023.5,3023.0,3.30794475]
[1763641692709,0.0047,3023.3,3022.9,3.42001237]
[1763641692928,0.0047,3023.3,3023.0,0.36111124]
[1763641693739,0.002,3023.5,3023.1,3.30786278]
[1763641693908,0.002,3023.5,3023.1,6.61572556]
[1763641694108,0.002,3023.5,3023.1,7.09392556]
[1763641694311,0.002,3023.5,3023.2,0.4782]
[1763641694647,0.002,3023.5,3023.2,1.12931789]
[1763641697150,0.002,3023.5,3023.3,3.30764396]
[1763641697319,0.002,3023.5,3023.4,0.4723]
[1763641697519,0.002,3023.5,3023.4,0.9505]
[1763641697939,0.002,3023.5,3023.4,0.4723]
[1763641698118,0.002,3023.5,3023.4,1.24617058]
[1763641698647,0.002,3023.5,3023.4,0.77387058]
[1763641699245,0.0784,3023.5,3023.0,3.30795426]
[1763641699447,0.0756,3023.1,3023.0,3.30795426]
[1763641699828,0.5829,3023.5,3023.0,3.30795426]
[1763641700740,0.0803,3023.1,3022.8,0.90699264]
[1763641702030,0.5829,3023.5,3022.8,0.90699264]
[1763641702260,0.002,3023.5,3023.4,0.4723]
[1763641702755,0.002,3023.5,3023.4,5.1650272]
[1763641706553,0.0764,3023.0,3022.9,3.30808164]
[1763641706726,0.0764,3023.0,3022.7,0.90699264]
[1763641706929,0.0764,3023.0,3022.8,0.75238126]
[1763641707251,0.112,3023.3,3022.8,0.75238126]
[1763641707427,0.5849,3023.3,3022.8,0.75238126]
[1763641707832,3.30863864,3023.5,3023.2,0.4723]
[1763641707833,0.0012,3023.5,3023.2,0.4723]
[1763641708458,0.0012,3023.5,3023.0,0.4782]
[1763641709149,0.0012,3023.5,3023.1,6.61572556]
[1763641710531,0.0574,3023.2,3022.9,3.30804278]
[1763641710938,0.492,3023.4,3022.9,3.30804278]
[1763641711135,0.0574,3023.0,3022.8,3.30813891]
[1763641711340,0.112,3023.3,3022.8,6.61632999]
[1763641711582,0.112,3023.3,3022.4,3.3085867]
[1763641711583,0.0574,3022.9,3022.4,0.90699264]
[1763641711886,0.0574,3022.9,3022.4,6.6172578]
[1763641712191,0.6466,3022.8,3022.4,6.6172578]
[1763641712341,0.0015,3022.5,3022.4,4.21562154]
[1763641713065,0.492,3022.7,3022.4,4.21562154]
[1763641714262,0.0584,3022.5,3022.4,3.3086289]
[1763641715442,0.0584,3022.5,3022.2,6.6176957]
[1763641715642,0.0584,3022.5,3022.2,7.29867527]
[1763641716685,0.0584,3022.5,3022.4,0.001]
[1763641716981,0.492,3022.5,3022.4,0.001]
[1763641717152,0.5504,3022.5,3022.4,0.001]
[1763641717553,0.5461,3022.5,3022.4,0.001]
[1763641717968,0.0584,3022.5,3022.4,0.001]
[1763641718201,0.5257,3022.5,3022.4,0.001]
[1763641719494,0.0584,3022.5,3022.4,0.001]
[1763641720877,0.2666,3022.8,3022.4,0.4869]
[1763641721094,0.7339,3022.8,3022.4,0.001]
[1763641721280,0.2666,3022.8,3022.4,0.001]
[1763641721882,0.57585366,3022.8,3022.4,0.001]
[1763641722272,0.2666,3022.8,3022.4,0.001]
[1763641722472,0.30921704,3022.9,3022.4,0.001]
[1763641722799,0.46481704,3022.9,3022.4,0.001]
[1763641723355,4.24024827,3022.9,3022.4,0.001]
[1763641723561,0.30918986,3022.8,3022.4,0.001]
[1763641723762,0.77648986,3022.8,3022.4,0.001]
[1763641724290,0.4673,3022.8,3022.4,0.001]
[1763641726002,0.1556,3022.9,3022.4,0.001]
[1763641726167,0.46475646,3022.9,3022.4,0.001]
[1763641726366,0.93205646,3022.9,3022.4,0.001]
[1763641726568,0.1556,3022.9,3022.4,0.473]
[1763641726763,0.46475228,3022.9,3022.4,0.001]
[1763641726964,0.0819,3022.5,3022.4,0.001]
[1763641727777,0.5454,3022.5,3022.4,0.001]
[1763641728293,0.5446,3022.5,3022.4,0.001]
[1763641728490,0.0811,3022.5,3022.4,0.001]
[1763641732303,0.112,3022.6,3022.4,0.4869]
[1763641732600,0.062,3022.6,3022.4,0.4869]
[1763641732806,0.062,3022.6,3022.4,3.7955065]
[1763641733412,0.062,3022.6,3022.4,0.001]
[1763641733413,0.0849,3022.5,3022.4,0.001]
[1763641733614,0.39430418,3022.5,3022.4,0.001]
[1763641734481,0.89536067,3022.5,3022.4,0.001]
[1763641734687,4.2038801,3022.5,3022.4,0.001]
[1763641735775,4.16252361,3022.5,3022.4,0.001]
[1763641736101,4.2038801,3022.5,3022.4,0.001]
[1763641736816,4.91748245,3022.5,3022.4,0.001]
[1763641736988,5.80960271,3022.5,3022.4,0.001]
[1763641737191,5.82447509,3022.5,3022.4,0.001]
[1763641737385,7.41652218,3022.5,3022.4,0.001]
[1763641737592,7.37516569,3022.5,3022.4,0.001]
[1763641739178,6.1886226,3022.5,3022.4,0.001]
[1763641739379,7.37516569,3022.5,3022.4,0.001]
[1763641740507,6.96966169,3022.5,3022.4,0.001]
[1763641741390,7.37516569,3022.5,3022.4,0.001]
[1763641741589,21.04922458,3022.5,3022.4,0.001]
[1763641741911,0.405504,3021.8,3021.5,0.001]
[1763641742079,1.75975501,3021.6,3021.5,0.001]
[1763641742275,4.02670349,3021.6,3021.5,0.001]
[1763641742511,4.11180349,3021.6,3021.5,0.001]
[1763641742720,2.31455984,3021.6,3021.5,0.001]
[1763641742893,6.53105737,3021.6,3021.5,0.001]
[1763641743284,7.42051778,3021.6,3021.5,0.001]
[1763641743611,6.12555337,3021.6,3021.5,0.001]
[1763641743817,6.04045337,3021.6,3021.5,0.001]
[1763641744114,6.15245337,3021.6,3021.5,0.001]
[1763641744907,6.23755337,3021.6,3021.5,0.001]
[1763641747086,5.24546073,3021.6,3021.5,0.001]
[1763641747313,4.61695838,3021.6,3021.5,0.001]
[1763641748519,5.32767295,3021.6,3021.5,0.001]
[1763641749019,4.61695838,3021.6,3021.5,0.001]
[1763641749507,6.63998851,3021.6,3021.5,0.001]
[1763641749719,6.23448451,3021.6,3021.5,0.001]
[1763641752323,6.23368451,3021.6,3021.5,0.001]
[1763641754211,5.52315102,3021.6,3021.5,0.001]
[1763641754527,6.14825552,3021.6,3021.5,0.001]
[1763641755211,6.23335552,3021.6,3021.5,0.001]
[1763641756433,0.30940418,3021.6,3021.5,0.9897]
[1763641756604,0.112,3021.6,3021.5,0.9897]
[1763641757624,0.112,3021.6,3021.5,0.4912]
[1763641758130,0.112,3021.6,3021.5,0.9897]
[1763641759595,0.112,3021.6,3021.5,1.41965083]
[1763641759790,0.112,3021.6,3021.5,4.29931442]
[1763641761257,0.112,3021.6,3021.5,0.9897]
[1763641761743,0.5847,3021.6,3021.5,0.001]
[1763641761942,3.89420489,3021.6,3021.5,0.001]
[1763641762244,3.9355737,3021.6,3021.5,0.001]
[1763641762646,4.24463435,3021.6,3021.5,0.001]
[1763641763013,0.42106065,3021.6,3021.5,0.4912]
[1763641763315,0.112,3021.6,3021.5,0.4912]
[1763641764025,0.42106065,3021.6,3021.5,0.4912]
[1763641764220,3.73056554,3021.6,3021.5,0.4912]
[1763641765128,3.79236554,3021.6,3021.5,0.001]
[1763641765325,0.42106065,3021.6,3021.5,0.001]
[1763641765828,0.42159217,3021.6,3021.5,0.001]
[1763641766145,3.73109706,3021.6,3021.5,0.001]
[1763641766348,1.13532329,3021.6,3021.5,0.001]
[1763641767730,4.44482818,3021.6,3021.5,0.001]
[1763641769858,4.44482818,3021.6,3021.5,0.4959]
[1763641770060,0.42159217,3021.6,3021.5,0.9887]
[1763641770221,0.112,3021.6,3021.5,0.9887]
[1763641770741,0.42159217,3021.6,3021.5,0.9887]
[1763641771048,0.114,3021.6,3021.5,0.9887]
[1763641771549,0.42359217,3021.6,3021.5,0.9887]
[1763641771746,0.42359217,3021.6,3021.5,4.72815563]
[1763641771747,0.002,3021.6,3021.5,4.72815563]
[1763641773022,0.002,3021.6,3021.5,8.51815563]
[1763641776127,0.0012,3021.6,3021.5,4.72815563]
[1763641779172,0.0012,3021.6,3021.5,1.41854121]
[1763641779467,0.0012,3021.6,3021.5,0.9887]
[1763641780233,0.0012,3021.6,3021.5,4.29831442]
[1763641783872,0.0012,3021.6,3021.5,0.9887]
[1763641784079,0.0012,3021.6,3021.5,4.29831442]
[1763641785374,0.0012,3021.6,3021.5,0.9887]
[1763641786467,0.0012,3021.6,3021.5,4.29831442]
[1763641786670,0.0012,3021.6,3021.5,5.05911248]
[1763641788969,0.0012,3021.6,3021.5,4.29831442]
[1763641790137,0.0012,3021.6,3021.5,9.03737337]
[1763641790848,0.0012,3021.6,3021.5,4.29831442]
[1763641792962,0.0012,3021.6,3021.5,9.03737337]
[1763641793600,0.0012,3021.6,3021.5,4.29831442]
[1763641793800,0.0012,3021.6,3021.5,5.53302368]
[1763641794181,0.0012,3021.6,3021.5,9.32302368]
[1763641796201,0.0012,3021.6,3021.5,8.83022368]
[1763641796500,0.0012,3021.6,3021.5,8.05171442]
[1763641800304,0.0004,3021.6,3021.5,8.05171442]
[1763641800504,0.30999217,3021.6,3021.5,8.05171442]
[1763641800807,0.0004,3021.6,3021.5,8.05171442]
[1763641801008,0.0004,3021.6,3021.5,4.2859]
[1763641801191,0.30999217,3021.6,3021.5,4.26171442]
[1763641801381,0.30999217,3021.6,3021.5,3.80551442]
[1763641801703,0.30999217,3021.6,3021.5,0.4959]
[1763641802407,0.30999217,3021.6,3021.5,4.26171442]
[1763641804797,0.30999217,3021.6,3021.5,5.49276362]
[1763641806277,0.30999217,3021.6,3021.5,4.26171442]
[1763641807014,0.31105025,3021.6,3021.5,4.26171442]
[1763641807580,0.36135025,3021.6,3021.5,0.001]
[1763641807785,0.31105025,3021.6,3021.5,3.77211442]
[1763641807986,0.31105025,3021.6,3021.5,0.4625]
[1763641808903,0.31105025,3021.6,3021.5,3.77211442]
[1763641809102,0.31105025,3021.6,3021.5,4.23451442]
[1763641811021,0.0004,3021.6,3021.5,4.23451442]
[1763641811313,0.0004,3021.6,3021.5,5.46284386]
[1763641811493,0.31105025,3021.6,3021.5,5.46284386]
[1763641811814,0.0004,3021.6,3021.5,5.46284386]
[1763641812204,0.31105025,3021.6,3021.5,5.46284386]
[1763641812407,0.0004,3021.6,3021.5,5.46284386]
[1763641812804,0.31105025,3021.6,3021.5,5.46284386]
[1763641813115,0.0004,3021.6,3021.5,5.46284386]
[1763641813330,0.0004,3021.6,3021.5,0.4625]
[1763641813620,0.37655025,3021.6,3021.5,0.001]
[1763641814380,0.31105025,3021.6,3021.5,0.4696]
[1763641814585,0.31105025,3021.6,3021.5,0.932]
[1763641814983,0.31105025,3021.6,3021.5,1.6871667]
[1763641815322,0.31105025,3021.6,3021.5,0.932]
[1763641815817,0.31105025,3021.6,3021.5,4.24161442]
[1763641816133,0.31105025,3021.6,3021.5,5.57698643]
[1763641816134,0.0004,3021.6,3021.5,5.57698643]
[1763641816282,0.0004,3021.6,3021.5,10.60422026]
[1763641816783,0.0004,3021.6,3021.5,12.8294196]
[1763641817723,0.0004,3021.6,3021.5,12.9414196]
[1763641817922,0.0004,3021.6,3021.5,12.63036935]
[1763641818220,0.0004,3021.6,3021.5,12.76285982]
[1763641819727,0.0004,3021.6,3021.5,12.11286535]
[1763641820332,0.0659,3021.6,3021.5,3.31061442]
[1763641820536,0.0659,3021.6,3021.5,0.001]
[1763641820689,0.5456,3021.6,3021.5,0.001]
[1763641821015,0.0659,3021.6,3021.5,3.31061442]
[1763641821436,0.0659,3021.6,3021.5,0.001]
[1763641822064,0.37621708,3021.6,3021.5,0.001]
[1763641822244,0.5456,3021.6,3021.5,0.001]
[1763641822413,4.16542197,3021.6,3021.5,0.001]
[1763641822754,4.8798636,3021.6,3021.5,0.001]
[1763641822921,1.57035871,3021.6,3021.5,0.001]
[1763641823441,4.8798636,3021.6,3021.5,0.001]
[1763641823738,1.57035871,3021.6,3021.5,0.001]
[1763641824142,0.85511708,3021.6,3021.5,0.001]
[1763641824944,1.56955871,3021.6,3021.5,0.001]
[1763641825443,0.37541708,3021.6,3021.5,0.001]
[1763641825644,1.08944142,3021.6,3021.5,0.001]
[1763641826851,1.56914142,3021.6,3021.5,0.001]
[1763641827235,5.46591229,3021.6,3021.5,0.001]
[1763641827546,4.87864631,3021.6,3021.5,0.001]
[1763641828346,4.99064631,3021.6,3021.5,0.001]
[1763641829565,5.12319693,3021.6,3021.5,0.001]
[1763641832380,1.33399204,3021.6,3021.5,0.001]
[1763641832616,4.64349693,3021.6,3021.5,0.001]
[1763641834590,4.64301803,3021.6,3021.5,0.001]
[1763641835476,5.12271803,3021.6,3021.5,0.001]
[1763641836042,5.16408684,3021.6,3021.5,0.001]
[1763641836273,5.12271803,3021.6,3021.5,0.001]
[1763641836500,4.64301803,3021.6,3021.5,0.001]
[1763641836999,5.12271803,3021.6,3021.5,0.001]
[1763641837209,1.26841314,3021.6,3021.5,0.4828]
[1763641837498,0.55397151,3021.6,3021.5,0.9531]
[1763641837700,0.24455062,3021.6,3021.5,0.9531]
[1763641838002,0.13255062,3021.6,3021.5,0.9531]
[1763641838206,0.114,3022.0,3021.5,0.9531]
[1763641838404,0.114,3022.0,3021.5,0.4828]
[1763641838566,3.7737271,3022.0,3021.5,0.4828]
[1763641838767,0.30928013,3021.9,3021.5,3.79238672]
[1763641839397,0.42328013,3022.0,3021.5,4.26308672]
[1763641839602,3.77371412,3022.0,3021.5,4.26308672]
[1763641839779,0.30928013,3021.9,3021.5,4.26308672]
[1763641839981,0.30928013,3021.9,3021.5,0.4828]
[1763641840178,0.30928013,3021.9,3021.8,0.4579]
[1763641840501,0.114,3022.0,3021.8,0.4579]
[1763641840699,0.114,3022.0,3021.9,0.9286]
[1763641840868,0.002,3022.0,3021.9,0.9286]
[1763641842370,0.002,3022.0,3021.9,1.11215926]
[1763641842668,0.002,3022.0,3021.9,5.32832824]
[1763641847121,0.002,3022.0,3021.9,11.773541]
[1763641848189,0.0012,3022.0,3021.9,11.773541]
[1763641848412,0.0012,3022.0,3021.9,5.32832824]
[1763641851641,0.0012,3022.0,3021.9,4.85762824]
[1763641851809,0.0012,3022.0,3021.9,5.32832824]
[1763641853700,0.0012,3022.0,3021.9,11.79640542]
[1763641853910,0.0012,3022.0,3021.9,11.773541]
[1763641854232,0.0012,3022.0,3021.9,11.885541]
[1763641855337,0.0012,3022.0,3021.9,12.291045]
[1763641855734,0.0012,3022.0,3021.9,11.90600383]
[1763641855928,0.0012,3022.0,3021.9,11.773541]
[1763641856837,0.0012,3022.0,3021.9,11.885541]
[1763641860456,0.0012,3022.0,3021.9,12.291045]
[1763641860615,0.002,3022.3,3022.0,1.31249664]
[1763641860810,0.002,3022.3,3022.2,0.6566]
[1763641861028,0.002,3022.3,3022.2,4.4466]
[1763641861358,0.002,3022.3,3022.2,4.9173]
[1763641861854,0.002,3022.3,3022.2,8.22614785]
[1763641862762,0.4534,3022.3,3022.1,8.9898311]
[1763641862912,0.001,3022.2,3022.1,7.09895734]
[1763641863114,0.4963,3022.2,3022.1,7.09895734]
[1763641863421,0.002,3022.3,3022.1,7.09895734]
[1763641863422,0.002,3022.3,3022.1,7.55685734]
[1763641863826,0.002,3022.3,3022.1,7.09895734]
[1763641864022,0.0541,3022.2,3022.1,7.09895734]
[1763641864436,0.002,3022.3,3022.1,10.86581468]
[1763641864645,0.002,3022.3,3022.2,0.4579]
[1763641864851,0.002,3022.3,3022.2,4.73545257]
[1763641865048,0.0561,3022.3,3022.2,4.73545257]
[1763641865255,0.002,3022.3,3022.2,5.19335257]
[1763641866350,0.002,3022.3,3022.2,8.50220042]
[1763641866942,0.0561,3022.3,3022.2,4.73545257]
[1763641867145,0.0561,3022.3,3022.2,8.04430042]
[1763641868456,0.002,3022.3,3022.2,8.04430042]
[1763641869041,0.4918,3022.3,3022.2,8.04430042]
[1763641870289,0.002,3022.3,3022.2,10.53302536]
[1763641870557,0.002,3022.7,3022.5,1.38229264]
[1763641870757,0.002,3022.7,3022.6,5.32275257]
[1763641871066,0.002,3022.7,3022.6,7.10655287]
[1763641872155,0.002,3022.7,3022.6,6.99455287]
[1763641872450,0.0012,3022.7,3022.6,10.41496284]
[1763641873356,0.71468698,3023.8,3022.6,10.41496284]
[1763641873357,0.4568,3024.1,3023.1,0.405504]
[1763641873523,0.4568,3024.1,3024.0,4.73545257]
[1763641873722,0.4568,3024.1,3023.6,4.73545257]
[1763641874058,1.17073324,3024.3,3023.6,4.73545257]
[1763641874225,0.112,3024.5,3023.6,4.73545257]
[1763641874226,0.4568,3024.2,3023.6,4.73545257]
[1763641874421,0.4568,3024.2,3023.7,6.6144128]
[1763641875422,0.112,3024.5,3024.1,0.4753]
[1763641875623,0.112,3024.5,3024.4,4.73545257]
[1763641875857,0.6137,3024.7,3024.4,5.21075257]
[1763641875858,0.1569,3024.7,3024.4,5.21075257]
[1763641876055,0.4898,3024.5,3024.1,4.73545257]
[1763641876754,0.4898,3024.5,3024.2,3.30665961]
[1763641877679,0.4898,3024.5,3024.2,6.61331922]
[1763641877960,0.112,3024.8,3024.4,0.4753]
[1763641878456,0.112,3024.8,3024.4,0.9744]
[1763641878758,0.5688,3024.8,3024.4,0.4753]
[1763641879065,0.5688,3024.8,3024.5,3.30633162]
[1763641879232,0.112,3024.8,3024.5,3.30633162]
[1763641879865,0.0923,3024.6,3024.2,3.30656952]
[1763641880164,0.112,3024.8,3024.3,6.61310054]
[1763641880459,0.5688,3024.8,3024.3,3.30655027]
[1763641880668,0.0923,3024.4,3023.9,0.1985]
[1763641880865,0.0923,3024.4,3024.0,0.90699264]
[1763641881060,0.0923,3024.4,3024.1,3.30676895]
[1763641881474,0.0923,3024.4,3024.0,4.21383536]
[1763641881849,0.0923,3024.4,3024.0,0.90699264]
[1763641882050,0.88526213,3024.4,3024.0,4.21386328]
[1763641882248,0.43216213,3024.4,3024.0,7.52074158]
[1763641882475,0.0923,3024.4,3024.0,0.90699264]
[1763641882676,0.5454,3024.4,3024.0,4.21383439]
[1763641883081,0.5454,3024.4,3024.0,0.90699264]
[1763641883283,0.04132641,3024.7,3024.0,7.52068904]
[1763641883468,0.112,3024.8,3024.0,7.52068904]
[1763641883674,0.112,3024.8,3024.1,0.4991]
[1763641883870,0.112,3024.8,3024.0,7.52068904]
[1763641883871,0.4568,3024.7,3024.0,7.52068904]
[1763641884255,0.4568,3024.7,3024.0,7.53019235]
[1763641885479,0.04132777,3024.6,3024.0,4.22331405]
[1763641885853,0.4568,3024.6,3024.0,7.53019235]
[1763641886354,0.4568,3024.6,3024.0,11.32019235]
[1763641886580,0.49812777,3024.6,3024.0,11.32019235]
[1763641886889,0.4568,3024.6,3024.0,11.32019235]
[1763641887275,0.49812777,3024.6,3024.0,11.32019235]
[1763641888162,0.4568,3024.6,3024.0,11.32019235]
[1763641889573,0.4568,3024.6,3024.0,8.01331405]
[1763641889986,0.4568,3024.6,3024.0,11.32019235]
[1763641890197,0.4568,3024.6,3024.0,0.00950331]
[1763641890198,0.0923,3024.1,3024.0,0.00950331]
[1763641890376,0.2033,3024.1,3024.0,0.00950331]
[1763641891670,0.002,3024.7,3024.0,0.48480331]
[1763641891887,3.41912554,3024.7,3024.0,3.7916806]
[1763641892183,0.5698,3024.7,3024.0,7.0985589]
[1763641892390,0.113,3024.7,3024.0,7.0985589]
[1763641892595,0.113,3024.7,3024.1,0.4991]
[1763641893792,0.113,3024.7,3024.2,3.30665961]
[1763641894808,0.6101,3024.7,3024.2,3.30665961]
[1763641896406,3.91541571,3024.7,3024.0,0.00950331]
[1763641896611,0.0524,3024.1,3024.0,0.00950331]
[1763641896777,0.1634,3024.1,3024.0,0.00950331]
[1763641897110,1.31249664,3024.0,3023.0,0.001]
[1763641897278,0.616,3023.1,3023.0,0.001]
[1763641897478,0.727,3023.1,3023.0,0.001]
[1763641897721,0.817,3023.1,3023.0,0.001]
[1763641897918,4.12486278,3023.1,3023.0,0.001]
[1763641900201,0.817,3023.1,3023.0,0.001]
[1763641900794,4.12486278,3023.1,3023.0,0.001]
[1763641901223,0.817,3023.1,3023.0,0.001]
[1763641901390,4.12486278,3023.1,3023.0,0.001]
[1763641902117,0.817,3023.1,3023.0,0.001]
[1763641902282,4.12486278,3023.1,3023.0,0.001]
[1763641902483,0.817,3023.1,3023.0,0.001]
[1763641902911,0.706,3023.1,3023.0,0.001]
[1763641903097,0.6607,3023.1,3023.0,0.001]
[1763641903813,0.5671,3023.1,3023.0,0.001]
[1763641904026,0.6607,3023.1,3023.0,0.001]
[1763641904231,3.96856278,3023.1,3023.0,0.001]
[1763641905211,0.6607,3023.1,3023.0,0.001]
[1763641905529,0.4561,3023.1,3023.0,0.001]
[1763641905733,0.5671,3023.1,3023.0,0.001]
[1763641905934,3.87496278,3023.1,3023.0,0.001]
[1763641906133,3.96856278,3023.1,3023.0,0.001]
[1763641906837,0.6607,3023.1,3023.0,0.001]
[1763641907035,0.5671,3023.1,3023.0,0.001]
[1763641908334,0.1562,3023.5,3023.0,0.4732]
[1763641908522,0.112,3023.4,3023.2,0.4722]
[1763641908720,1.01790476,3023.8,3023.2,0.4722]
[1763641909036,0.57695029,3023.7,3023.2,3.77993137]
[1763641909529,0.0735,3023.3,3023.0,3.30894085]
[1763641909731,0.112,3023.3,3023.0,0.001]
[1763641909930,0.0735,3023.1,3023.0,0.001]
[1763641910138,0.0735,3023.1,3023.0,3.30897221]
[1763641910332,0.112,3023.3,3023.0,3.78117221]
[1763641910636,0.112,3023.3,3023.0,4.25217221]
[1763641911641,0.112,3023.3,3023.0,0.4732]
[1763641911801,0.0735,3023.1,3023.0,0.001]
[1763641912001,0.5452,3023.1,3023.0,0.001]
[1763641913022,3.85306278,3023.1,3023.0,0.001]
[1763641913643,3.89441106,3023.1,3023.0,0.001]
[1763641913809,3.85306278,3023.1,3023.0,0.001]
[1763641914408,0.5452,3023.1,3023.0,0.001]
[1763641914608,3.41965616,3023.3,3023.0,0.4732]
[1763641914802,3.30731578,3023.6,3023.0,0.4732]
[1763641915142,3.30753456,3023.4,3023.0,0.001]
[1763641915305,0.476,3023.1,3023.0,0.001]
[1763641915502,0.588,3023.1,3023.0,0.001]
[1763641915705,0.6613,3023.1,3023.0,0.001]
[1763641917646,4.01051106,3023.1,3023.0,0.001]
[1763641918345,3.96916278,3023.1,3023.0,0.001]